bitfinex/quotes_SOLUSD_20260201
["timestamp","ask_amount","ask_price","bid_price","bid_amount"]
[1769988576357,14.36523029,100.84,100.73,0.14216157]
[1769988576560,4.44853057,100.83,100.77,22.99904587]
[1769988576756,4.44853057,100.83,100.78,22.99904587]
[1769988577164,4.44853057,100.83,100.76,9.92432956]
[1769988577365,4.44853057,100.83,100.77,22.99904587]
[1769988577550,9.91669972,100.84,100.8,22.99904587]
[1769988577957,14.36523029,100.84,100.77,9.92321482]
[1769988578260,39.15697959,100.84,100.77,22.99904587]
[1769988578459,4.44853057,100.83,100.74,22.99904587]
[1769988578762,4.44853057,100.83,100.77,22.99904587]
[1769988579062,9.91669972,100.84,100.8,22.99904587]
[1769988579280,14.36523029,100.84,100.78,22.99904587]
[1769988579470,4.44853057,100.83,100.77,22.99904587]
[1769988580461,9.91866693,100.82,100.77,32.69919261]
[1769988580663,4.44853057,100.83,100.76,22.77603899]
[1769988580850,4.44853057,100.82,100.74,32.70253775]
[1769988581165,4.44853057,100.82,100.77,22.77603899]
[1769988581461,4.44853057,100.82,100.7,27.56]
[1769988581762,4.44853057,100.78,100.72,22.77603899]
[1769988581968,4.44853057,100.81,100.75,9.92496958]
[1769988582165,4.44853057,100.81,100.71,5.64518502]
[1769988582465,9.92043789,100.81,100.75,9.92529554]
[1769988583168,4.27527085,100.8,100.72,10.43277378]
[1769988583345,4.27527085,100.8,100.73,9.92750921]
[1769988584082,4.27527085,100.78,100.7,0.49722634]
[1769988584255,4.26486296,100.77,100.69,24.82733235]
[1769988584453,14.1894362,100.76,100.7,9.93007134]
[1769988584673,39.0008693,100.76,100.7,9.93007134]
[1769988584875,3.76486296,100.75,100.68,9.9320885]
[1769988585070,9.92393931,100.77,100.72,22.77603899]
[1769988585269,49.58983501,100.83,100.75,22.77603899]
[1769988585569,49.58983501,100.83,100.73,23.76921939]
[1769988585570,38.9915048,100.82,100.73,23.76921939]
[1769988585748,34.71623395,100.82,100.74,22.77603899]
[1769988586148,38.9915048,100.82,100.74,22.77603899]
[1769988586550,74.39090167,100.82,100.71,23.76612274]
[1769988586753,4.27527085,100.8,100.72,9.92793351]
[1769988586961,4.09270191,100.79,100.72,32.70409701]
[1769988587266,4.09270191,100.79,100.71,0.99008375]
[1769988587446,4.27527085,100.8,100.69,23.76208727]
[1769988587447,4.09270191,100.77,100.69,23.76208727]
[1769988587649,4.09270191,100.77,100.67,0.98604828]
[1769988587856,4.09270191,100.77,100.69,10.91709369]
[1769988588063,4.09270191,100.77,100.68,0.9820741]
[1769988588270,4.09270191,100.77,100.68,10.91412897]
[1769988588653,4.09270191,100.75,100.67,9.93264456]
[1769988588847,4.09270191,100.73,100.66,9.93406974]
[1769988589564,8.36797276,100.75,100.69,22.77603899]
[1769988589763,4.09270191,100.74,100.68,58.51750912]
[1769988590272,4.09270191,100.74,100.69,22.77603899]
[1769988590473,4.09270191,100.74,100.68,58.51750912]
[1769988590669,14.02016766,100.74,100.68,33.68636093]
[1769988590854,14.02016766,100.74,100.68,10.91032194]
[1769988591180,4.09270191,100.71,100.63,0.9702605]
[1769988591394,4.09270191,100.7,100.63,23.74629949]
[1769988591677,14.02016766,100.74,100.68,23.74629949]
[1769988591878,4.09270191,100.74,100.7,22.77603899]
[1769988592073,4.09270191,100.74,100.68,22.77603899]
[1769988592284,4.09270191,100.74,100.66,23.7423864]
[1769988592576,14.02023094,100.73,100.67,9.93325345]
[1769988592875,4.09270191,100.72,100.67,22.77603899]
[1769988593051,4.09270191,100.72,100.66,33.6765347]
[1769988593251,4.09270191,100.72,100.66,32.71018729]
[1769988593457,4.09270191,100.67,100.58,0.96244114]
[1769988593676,4.09270191,100.67,100.57,9.94260494]
[1769988593861,4.09270191,100.67,100.56,10.90640214]
[1769988594173,4.27527085,100.66,100.58,23.7345807]
[1769988594375,4.09270191,100.65,100.59,57.57067213]
[1769988594590,14.02688212,100.67,100.61,22.77603899]
[1769988594958,38.8604969,100.67,100.61,22.77603899]
[1769988596477,38.8604969,100.67,100.62,23.72680238]
[1769988596478,9.93418021,100.67,100.62,23.72680238]
[1769988596776,9.93418021,100.67,100.62,0.95076339]
[1769988597178,38.8604969,100.67,100.6,33.66287136]
[1769988597379,38.8604969,100.67,100.61,9.93877806]
[1769988597794,38.8604969,100.67,100.61,32.71481705]
[1769988598465,38.8604969,100.67,100.61,9.93877806]
[1769988599159,38.8604969,100.67,100.61,32.71481705]
[1769988599364,4.09270191,100.66,100.6,33.66289044]
[1769988599572,4.09270191,100.66,100.61,32.71534685]
[1769988600079,62.7,100.65,100.59,0.9352893]
[1769988600284,62.7,100.65,100.61,32.71524589]
[1769988600988,62.7,100.65,100.59,10.87656487]
[1769988600989,4.09270191,100.65,100.59,10.87656487]
[1769988601160,4.09270191,100.65,100.6,9.94031623]
[1769988601364,4.09270191,100.68,100.63,22.77603899]
[1769988601590,4.09270191,100.67,100.6,9.94031623]
[1769988601883,4.09270191,100.67,100.6,32.71635522]
[1769988602091,4.09270191,100.69,100.64,22.77603899]
[1769988602384,4.09270191,100.68,100.62,22.77603899]
[1769988602687,14.02421208,100.69,100.64,22.77603899]
[1769988602987,14.02418224,100.69,100.63,23.7036327]
[1769988603163,4.09270191,100.68,100.61,23.69979531]
[1769988603364,9.93344591,100.67,100.62,9.93838203]
[1769988604181,14.02614782,100.67,100.62,32.71442102]
[1769988604413,4.09270191,100.65,100.53,0.91992587]
[1769988604564,4.09270191,100.63,100.57,9.94295701]
[1769988604769,4.09270191,100.63,100.57,9.94258686]
[1769988604986,4.09270191,100.63,100.55,9.94507869]
[1769988605293,4.09270191,100.63,100.56,9.94430744]
[1769988605593,4.09270191,100.61,100.54,0.91992587]
[1769988605962,4.09270191,100.58,100.5,0.2]
[1769988606398,4.09270191,100.56,100.5,0.2]
[1769988606879,4.09270191,100.56,100.5,10.15020529]
[1769988607086,27.6,100.58,100.5,10.15020529]
[1769988607087,14.03527455,100.58,100.52,22.91635406]
[1769988607389,4.09270191,100.53,100.5,1e-08]
[1769988608282,4.26987437,100.55,100.5,1e-08]
[1769988608462,4.26987437,100.57,100.51,22.91635406]
[1769988608663,4.26987437,100.57,100.52,22.91635406]
[1769988609067,4.26987437,100.57,100.51,22.91635406]
[1769988609466,4.26987437,100.57,100.5,0.90522417]
[1769988609467,4.26987437,100.56,100.5,1e-08]
[1769988609666,4.26987437,100.56,100.48,25.7805294]
[1769988609667,4.26987437,100.52,100.47,0.2]
[1769988610181,4.26987437,100.5,100.37,1.09763203]
[1769988610361,4.26987437,100.46,100.37,1.09763203]
[1769988610567,4.26987437,100.46,100.35,24.01398609]
[1769988610864,4.26987437,100.46,100.37,9.96303458]
[1769988611390,14.225554,100.45,100.4,9.96015936]
[1769988611769,4.26987437,100.44,100.4,9.96015936]
[1769988611966,4.26987437,100.44,100.37,24.01046151]
[1769988612167,4.26987437,100.41,100.33,24.00668239]
[1769988612481,4.26987437,100.43,100.36,22.91635406]
[1769988612682,4.26987437,100.43,100.38,22.91635406]
[1769988612865,4.26987437,100.43,100.36,1.09032833]
[1769988613189,4.26987437,100.39,100.31,9.96830608]
[1769988613387,14.2340035,100.36,100.3,9.96976223]
[1769988613687,8.54514522,100.38,100.3,33.97267256]
[1769988613891,4.26987437,100.37,100.3,34.89498655]
[1769988614186,4.26987437,100.37,100.3,9.96976223]
[1769988615193,4.26987437,100.37,100.29,9.97073955]
[1769988615390,4.26987437,100.34,100.27,57.82068403]
[1769988615591,4.26987437,100.33,100.27,34.90432997]
[1769988616017,4.26987437,100.33,100.27,57.82068403]
[1769988616225,4.26987437,100.35,100.28,23.99168868]
[1769988616496,4.26987437,100.37,100.31,22.91635406]
[1769988617081,4.26987437,100.37,100.3,22.91635406]
[1769988617393,4.26987437,100.36,100.31,9.9690958]
[1769988617592,29.17866008,100.39,100.31,32.88544986]
[1769988617593,8.54514522,100.39,100.31,32.88544986]
[1769988617769,4.26987437,100.41,100.34,22.91635406]
[1769988617973,4.26987437,100.4,100.32,22.91635406]
[1769988618173,4.26987437,100.4,100.31,34.8918353]
[1769988618174,4.26987437,100.4,100.34,22.91635406]
[1769988618976,4.26987437,100.4,100.35,22.91635406]
[1769988619297,4.26987437,100.42,100.38,22.91635406]
[1769988619481,4.26987437,100.42,100.37,9.96216174]
[1769988619666,4.26987437,100.42,100.38,9.96199726]
[1769988619870,4.26987437,100.42,100.39,22.91635406]
[1769988620901,4.26987437,100.42,100.4,22.91635406]
[1769988621102,4.26987437,100.44,100.4,22.94455776]
[1769988621400,4.26987437,100.44,100.42,22.94455776]
[1769988621693,37.5945649,100.46,100.43,22.94455776]
[1769988621694,4.26987437,100.46,100.43,22.94455776]
[1769988621897,14.22210366,100.48,100.43,22.94455776]
[1769988622600,37.16666142,100.48,100.43,22.94455776]
[1769988623098,4.26987437,100.5,100.45,22.94455776]
[1769988623476,27.21443213,100.48,100.43,32.90128965]
[1769988623884,4.26987437,100.48,100.43,32.90128965]
[1769988624089,4.26987437,100.48,100.45,22.94455776]
[1769988624277,4.26987437,100.47,100.43,9.95673189]
[1769988624484,27.21443213,100.47,100.43,9.95673189]
[1769988624693,22.94455776,100.46,100.42,9.95781687]
[1769988624887,4.26987437,100.47,100.43,32.90168621]
[1769988625095,41.44132383,100.49,100.44,22.94455776]
[1769988625400,4.26987437,100.51,100.46,22.94455776]
[1769988625602,4.26987437,100.51,100.47,32.89777762]
[1769988625779,9.94134605,100.59,100.49,22.94455776]
[1769988625981,9.94134605,100.59,100.5,22.94455776]
[1769988625982,4.26987437,100.55,100.5,22.94455776]
[1769988626195,27.21443213,100.53,100.47,23.98689671]
[1769988626403,4.26987437,100.47,100.36,9.96382697]
[1769988626697,4.26987437,100.47,100.34,1.03870546]
[1769988626698,4.26987437,100.4,100.34,25.9524763]
[1769988626889,22.94455776,100.39,100.36,9.96405849]
[1769988627090,4.26987437,100.46,100.39,1.03507853]
[1769988627282,4.26987437,100.45,100.4,22.94455776]
[1769988627489,37.16989089,100.45,100.4,9.96015936]
[1769988627683,27.21443213,100.44,100.38,9.96177857]
[1769988627883,27.21443213,100.43,100.38,9.96154823]
[1769988628075,27.21443213,100.43,100.39,9.96104529]
[1769988628598,27.21443213,100.42,100.38,9.96176725]
[1769988628779,4.26987437,100.42,100.39,9.96112495]
[1769988629603,4.26987437,100.42,100.37,57.8140288]
[1769988630097,27.21443213,100.42,100.37,34.86947104]
[1769988630400,4.26987437,100.43,100.38,22.94455776]
[1769988630575,27.21443213,100.41,100.36,9.96388875]
[1769988630776,4.26987437,100.37,100.3,1.02423725]
[1769988630989,4.26987437,100.36,100.28,1.22423725]
[1769988631304,27.21443213,100.36,100.3,22.94455776]
[1769988631690,4.26987437,100.39,100.34,22.94455776]
[1769988632099,4.26987437,100.39,100.33,23.96519443]
[1769988632394,4.26987437,100.41,100.35,22.94455776]
[1769988632597,4.26987437,100.41,100.36,22.94455776]
[1769988633301,22.94455776,100.4,100.34,22.94455776]
[1769988633485,4.26987437,100.38,100.33,22.94455776]
[1769988633687,4.26987437,100.38,100.33,32.91068818]
[1769988634082,4.26987437,100.38,100.33,57.82845953]
[1769988634289,4.26987437,100.38,100.34,22.94455776]
[1769988634990,4.26987437,100.41,100.37,22.94455776]
[1769988635391,22.94455776,100.41,100.34,1.00630047]
[1769988635596,27.21443213,100.41,100.35,22.94455776]
[1769988635910,4.26987437,100.41,100.36,32.90868689]
[1769988636098,4.26987437,100.41,100.37,22.94455776]
[1769988636293,4.26987437,100.41,100.38,22.94455776]
[1769988636499,4.26987437,100.41,100.37,22.94455776]
[1769988636815,4.26987437,100.41,100.38,22.94455776]
[1769988637013,4.26987437,100.44,100.39,22.94455776]
[1769988637314,27.21443213,100.43,100.37,23.94729073]
[1769988637520,27.16510531,100.42,100.36,34.87445196]
[1769988637681,34.84688771,100.44,100.36,34.87445196]
[1769988637682,27.16510531,100.41,100.36,34.87445196]
[1769988637889,37.12481578,100.41,100.36,9.96412913]
[1769988638207,4.22054755,100.41,100.36,32.90868689]
[1769988638411,4.22054755,100.43,100.39,22.94455776]
[1769988638991,66.92054755,100.45,100.4,22.94455776]
[1769988639304,4.22054755,100.42,100.37,22.94455776]
[1769988639611,27.16510531,100.42,100.37,22.94455776]
[1769988639807,4.22054755,100.42,100.38,9.96214385]
[1769988640014,4.22054755,100.44,100.4,22.94455776]
[1769988640499,4.22054755,100.44,100.4,22.94418422]
[1769988641299,4.22054755,100.44,100.41,22.94418422]
[1769988641699,62.7,100.45,100.41,22.94418422]
[1769988641907,62.7,100.45,100.41,32.9025786]
[1769988642093,4.22054755,100.44,100.4,9.95974087]
[1769988642298,4.22054755,100.44,100.41,9.9591286]
[1769988643007,62.7,100.45,100.42,22.94418422]
[1769988643435,9.13887842,100.45,100.43,22.94418422]
[1769988643737,13.35942597,100.45,100.41,32.90331282]
[1769988643925,13.35942597,100.45,100.41,22.94418422]
[1769988644223,4.22054755,100.44,100.4,9.96015936]
[1769988644406,9.13887842,100.45,100.4,57.80474198]
[1769988645137,9.13887842,100.45,100.43,22.94418422]
[1769988645321,9.13887842,100.45,100.4,58.84554495]
[1769988645631,9.13887842,100.45,100.42,22.94418422]
[1769988646013,9.13887842,100.45,100.43,22.94418422]
[1769988646202,22.94418422,100.44,100.37,5.36086188]
[1769988646402,22.94418422,100.4,100.34,23.98152617]
[1769988646608,4.01387758,100.43,100.38,22.94418422]
[1769988646844,26.9580618,100.43,100.38,22.94418422]
[1769988647212,4.01387758,100.43,100.38,22.94418422]
[1769988647724,4.01387758,100.42,100.37,22.94418422]
[1769988647926,4.01387758,100.42,100.38,22.94418422]
[1769988648228,9.13887842,100.45,100.41,22.94418422]
[1769988649504,9.13887842,100.45,100.43,22.94418422]
[1769988649910,9.13887842,100.45,100.42,22.94418422]
[1769988650214,9.13887842,100.45,100.42,9.95771853]
[1769988652144,4.01387758,100.44,100.39,47.84505438]
[1769988652318,4.01387758,100.44,100.41,9.95865666]
[1769988652936,13.97010609,100.44,100.4,9.95976189]
[1769988654213,36.91429031,100.44,100.4,9.95976189]
[1769988654413,4.01387758,100.43,100.35,5.36086188]
[1769988654620,22.94418422,100.39,100.34,1.00814734]
[1769988654920,26.9580618,100.41,100.37,9.96248562]
[1769988655112,26.9580618,100.41,100.37,9.96305956]
[1769988655317,4.01387758,100.41,100.37,9.96305956]
[1769988655818,4.01387758,100.41,100.38,9.9620821]
[1769988656223,4.01387758,100.39,100.35,32.90930629]
[1769988656436,26.9580618,100.38,100.32,1.00092116]
[1769988656651,22.94418422,100.37,100.33,9.96664944]
[1769988656817,4.01387758,100.36,100.31,24.92186096]
[1769988657022,26.9580618,100.36,100.31,24.92186096]
[1769988657326,22.94418422,100.35,100.32,9.96769884]
[1769988657528,22.94418422,100.35,100.32,9.96802544]
[1769988657735,26.9580618,100.36,100.33,9.96710099]
[1769988658113,4.01387758,100.4,100.35,22.94418422]
[1769988658433,26.9580618,100.4,100.36,9.96412913]
[1769988658809,36.91837551,100.4,100.36,9.96412913]
[1769988659834,13.97419129,100.4,100.36,9.96412913]
[1769988660017,36.91837551,100.4,100.36,9.96412913]
[1769988660217,4.01387758,100.41,100.36,32.90831335]
[1769988660413,13.152756,100.45,100.38,0.98655562]
[1769988660621,13.152756,100.45,100.37,22.94418422]
[1769988660622,9.13887842,100.45,100.42,22.94418422]
[1769988660918,4.01387758,100.44,100.41,22.94418422]
[1769988661246,13.152756,100.45,100.4,22.94418422]
[1769988661424,4.01387758,100.47,100.42,22.94418422]
[1769988661624,112.43965419,100.53,100.45,22.94418422]
[1769988661625,4.01387758,100.49,100.45,22.94418422]
[1769988662051,4.01387758,100.49,100.46,22.94418422]
[1769988662221,4.01387758,100.49,100.45,32.89894829]
[1769988662421,13.96513378,100.49,100.45,24.24477663]
[1769988662716,4.01387758,100.46,100.41,14.29001256]
[1769988663042,4.01387758,100.47,100.43,9.9565782]
[1769988664035,4.01387758,100.45,100.41,9.95863979]
[1769988664228,4.01387758,100.47,100.42,14.29001256]
[1769988664430,4.01387758,100.46,100.41,49.1470985]
[1769988664626,4.01387758,100.46,100.41,9.95916741]
[1769988664627,18.30389014,100.46,100.41,9.95916741]
[1769988664817,4.01387758,100.41,100.35,24.91108763]
[1769988665022,14.29001256,100.4,100.36,9.9638692]
[1769988665340,4.01387758,100.43,100.38,14.29001256]
[1769988665518,4.01387758,100.43,100.4,14.29001256]
[1769988665723,4.01387758,100.45,100.41,14.29001256]
[1769988666325,4.01387758,100.45,100.41,24.24830878]
[1769988666519,9.95526252,100.45,100.41,24.24830878]
[1769988666721,4.01387758,100.42,100.37,14.29001256]
[1769988666936,18.30389014,100.42,100.38,9.96153681]
[1769988667248,4.01387758,100.41,100.37,9.96280258]
[1769988667420,18.30389014,100.41,100.37,9.96280258]
[1769988667740,49.13327906,100.45,100.36,9.96355798]
[1769988667741,18.23902684,100.39,100.36,9.96355798]
[1769988667935,31.93527085,100.43,100.36,24.25357054]
[1769988667936,18.23902684,100.41,100.36,24.25357054]
[1769988668133,3.94901428,100.43,100.39,14.29001256]
[1769988668320,3.94901428,100.43,100.4,9.96015936]
[1769988668943,3.94901428,100.43,100.4,24.25017192]
[1769988669142,13.90625921,100.43,100.39,24.25082683]
[1769988669441,3.94901428,100.43,100.4,14.29001256]
[1769988669939,3.94901428,100.41,100.37,24.25271738]
[1769988670241,18.23902684,100.4,100.36,9.96359948]
[1769988670620,28.1993039,100.4,100.36,9.96359948]
[1769988671044,3.94901428,100.39,100.35,24.25462427]
[1769988671232,14.29001256,100.37,100.34,9.96562383]
[1769988671541,3.94901428,100.38,100.35,9.96507023]
[1769988671720,3.94901428,100.39,100.35,9.96507023]
[1769988671922,3.94901428,100.38,100.34,9.96569529]
[1769988672126,18.23902684,100.38,100.34,9.96569529]
[1769988672522,28.20140162,100.38,100.34,9.96569529]
[1769988672731,3.94901428,100.36,100.33,9.96660922]
[1769988673030,9.96237478,100.38,100.34,14.29001256]
[1769988673031,3.94901428,100.38,100.34,14.29001256]
[1769988673632,3.94901428,100.37,100.33,49.17439313]
[1769988673834,3.94901428,100.37,100.34,14.29001256]
[1769988674129,3.94901428,100.37,100.33,49.17439313]
[1769988674326,3.94901428,100.37,100.33,24.25662178]
[1769988674540,13.9102119,100.39,100.35,14.29001256]
[1769988675057,3.94901428,100.36,100.33,9.96660922]
[1769988675950,3.94901428,100.34,100.3,0.2]
[1769988676120,3.94901428,100.33,100.3,10.16960751]
[1769988676520,3.94901428,100.32,100.3,0.2]
[1769988676723,3.94901428,100.3,100.28,0.2]
[1769988676923,14.29001256,100.32,100.28,0.2]
[1769988676924,3.94901428,100.34,100.3,9.9698716]
[1769988677143,3.94901428,100.33,100.3,9.9698716]
[1769988677645,3.94901428,100.34,100.3,24.25988416]
[1769988678031,3.94901428,100.34,100.3,49.18510848]
[1769988678230,3.94901428,100.36,100.32,14.29001256]
[1769988678433,3.94901428,100.36,100.33,14.29001256]
[1769988678639,3.94901428,100.35,100.31,14.29001256]
[1769988678838,3.94901428,100.35,100.31,24.25873727]
[1769988679446,3.94901428,100.38,100.33,9.96695783]
[1769988679645,3.94901428,100.38,100.35,14.29001256]
[1769988679949,3.94901428,100.38,100.36,14.29001256]
[1769988680553,3.94901428,100.4,100.37,14.29001256]
[1769988680752,3.94901428,100.4,100.38,14.29001256]
[1769988681050,3.94901428,100.4,100.37,14.29001256]
[1769988681643,3.94901428,100.4,100.38,14.29001256]
[1769988681847,3.94901428,100.41,100.38,14.29001256]
[1769988682751,13.90870485,100.41,100.37,14.29001256]
[1769988684382,13.90870485,100.41,100.37,24.25305034]
[1769988684942,3.94901428,100.4,100.37,24.25305034]
[1769988685142,58.37658202,100.42,100.4,4.07203765]
[1769988685352,27.68,100.5,100.41,14.29001256]
[1769988685557,14.29001256,100.49,100.44,14.29001256]
[1769988685754,14.29001256,100.46,100.38,5.36086188]
[1769988686060,14.29001256,100.46,100.41,14.29001256]
[1769988686255,24.24448232,100.46,100.41,24.24820867]
[1769988686763,14.29001256,100.46,100.41,49.1461272]
[1769988687154,18.60987875,100.46,100.41,49.1461272]
[1769988687362,4.31986619,100.45,100.41,49.1461272]
[1769988687562,18.60987875,100.46,100.41,24.24820867]
[1769988687767,4.31986619,100.46,100.42,14.29001256]
[1769988688148,18.60987875,100.45,100.41,34.85611464]
[1769988688474,4.31986619,100.45,100.41,49.1461272]
[1769988690265,4.31986619,100.45,100.42,14.29001256]
[1769988690466,4.31986619,100.45,100.43,24.24719666]
[1769988690862,4.31986619,100.45,100.42,24.24803905]
[1769988691173,66.25159864,100.44,100.41,24.24886571]
[1769988691349,61.93173245,100.44,100.42,9.95799761]
[1769988691666,61.93173245,100.44,100.42,24.24801017]
[1769988691967,61.93173245,100.44,100.42,14.29001256]
[1769988692169,61.93173245,100.44,100.42,24.24791195]
[1769988692364,61.93173245,100.44,100.43,14.29001256]
[1769988692570,61.93173245,100.44,100.43,9.9571841]
[1769988692763,61.93173245,100.44,100.42,24.24803466]
[1769988693771,61.93173245,100.44,100.43,9.9571841]
[1769988694066,9.88451877,100.44,100.43,9.9571841]
[1769988694268,14.27066121,100.5,100.43,49.19555065]
[1769988694451,4.31986619,100.49,100.47,14.29001256]
[1769988694869,4.31986619,100.53,100.48,14.29001256]
[1769988695067,10.04381442,100.57,100.52,14.29001256]
[1769988695373,0.1,100.57,100.55,14.29001256]
[1769988695565,0.1,100.57,100.52,18.36205021]
[1769988695566,0.1,100.57,100.56,14.29001256]
[1769988695765,0.1,100.58,100.56,14.29001256]
[1769988695967,0.1,100.58,100.55,14.29001256]
[1769988696165,0.1,100.58,100.56,14.29001256]
[1769988696368,10.04258052,100.58,100.54,14.29001256]
[1769988696756,14.29001256,100.55,100.47,14.29001256]
[1769988697074,14.29001256,100.52,100.48,9.95176321]
[1769988697375,18.23902684,100.53,100.49,9.95110278]
[1769988698277,4.19834166,100.52,100.49,9.95111057]
[1769988698777,4.19834166,100.52,100.48,9.9518275]
[1769988698778,18.48835422,100.52,100.48,9.9518275]
[1769988699076,14.29001256,100.51,100.46,14.29001256]
[1769988699278,4.19834166,100.52,100.49,14.29001256]
[1769988699857,4.19834166,100.51,100.48,9.95220974]
[1769988700057,4.19834166,100.53,100.49,14.29001256]
[1769988700479,28.43572532,100.53,100.49,14.29001256]
[1769988700977,28.43572532,100.53,100.49,24.24106396]
[1769988701157,4.19834166,100.52,100.48,24.24195081]
[1769988701358,4.19834166,100.52,100.47,14.29001256]
[1769988701359,4.19834166,100.51,100.47,14.29001256]
[1769988701567,4.19834166,100.49,100.44,31.90322219]
[1769988701760,14.29001256,100.48,100.44,4.24322219]
[1769988701976,14.29001256,100.48,100.43,39.18142679]
[1769988701977,14.29001256,100.47,100.43,24.89141423]
[1769988702359,18.49554428,100.47,100.42,4.24322219]
[1769988702558,14.29720262,100.45,100.4,18.54042481]
[1769988702763,18.49554428,100.46,100.41,43.43747193]
[1769988702969,18.49554428,100.46,100.42,9.95817566]
[1769988703581,4.19834166,100.43,100.38,27.64]
[1769988703795,4.19834166,100.43,100.39,9.96076337]
[1769988703796,18.49554428,100.43,100.39,9.96076337]
[1769988703966,14.29720262,100.42,100.39,9.96076337]
[1769988704466,18.49554428,100.41,100.36,29.15184204]
[1769988704781,18.49554428,100.41,100.36,14.29720262]
[1769988704989,18.49554428,100.41,100.36,24.26090037]
[1769988705193,28.45472357,100.41,100.36,49.1712232]
[1769988705395,14.29720262,100.38,100.33,4.24322219]
[1769988705562,4.19834166,100.37,100.32,18.54042481]
[1769988706060,4.19834166,100.37,100.33,9.96677973]
[1769988706257,18.57766382,100.38,100.34,9.96574221]
[1769988706462,14.29720262,100.37,100.33,9.96682262]
[1769988706894,28.5422276,100.36,100.3,43.47927452]
[1769988707182,18.57766382,100.37,100.32,14.29720262]
[1769988707379,4.2804612,100.36,100.32,14.29720262]
[1769988708486,9.9611515,100.39,100.34,14.29720262]
[1769988708487,4.2804612,100.38,100.34,14.29720262]
[1769988709479,4.27527085,100.4,100.35,14.29720262]
[1769988709480,28.53786474,100.4,100.35,14.29720262]
[1769988709678,4.2804612,100.37,100.33,9.96710854]
[1769988709880,4.2804612,100.37,100.33,24.26431116]
[1769988710081,4.2804612,100.36,100.32,9.96773644]
[1769988710462,4.2804612,100.36,100.32,24.26493906]
[1769988710882,14.24188962,100.39,100.34,14.29720262]
[1769988711082,4.2804612,100.39,100.35,14.29720262]
[1769988711287,18.57766382,100.39,100.34,14.29720262]
[1769988712382,9.96019464,100.4,100.32,34.88799162]
[1769988712383,14.29720262,100.36,100.32,34.88799162]
[1769988712584,14.24191667,100.39,100.32,53.44368102]
[1769988712787,28.53911929,100.39,100.34,14.29720262]
[1769988713480,14.29720262,100.4,100.35,14.29720262]
[1769988713687,4.2804612,100.41,100.37,14.29720262]
[1769988714188,4.2804612,100.41,100.38,14.29720262]
[1769988714407,4.2804612,100.41,100.37,14.29720262]
[1769988714593,4.2804612,100.41,100.38,14.29720262]
[1769988715082,4.2804612,100.41,100.37,49.16771828]
[1769988715691,4.2804612,100.41,100.37,24.2598773]
[1769988715901,4.2804612,100.43,100.39,14.29720262]
[1769988716096,4.2804612,100.43,100.4,14.29720262]
[1769988716391,6.26107781,100.44,100.39,4.25848678]
[1769988716597,6.26107781,100.44,100.42,24.25532012]
[1769988717106,4.2804612,100.49,100.43,18.5556894]
[1769988717396,4.2804612,100.49,100.45,14.29720262]
[1769988717576,4.2804612,100.49,100.43,4.25848678]
[1769988717577,4.2804612,100.47,100.43,14.29720262]
[1769988717992,4.2804612,100.47,100.42,34.85355665]
[1769988718189,4.2804612,100.46,100.42,49.15075927]
[1769988718386,18.57766382,100.48,100.43,14.29720262]
[1769988718579,18.57766382,100.48,100.44,24.25294539]
[1769988718783,28.52830153,100.5,100.45,14.29720262]
[1769988718985,14.23109891,100.5,100.46,14.29720262]
[1769988719398,18.57766382,100.48,100.43,24.25393312]
[1769988719696,8.55573205,100.52,100.47,14.29720262]
[1769988719897,6.25658415,100.54,100.49,14.29720262]
[1769988719898,24.83424797,100.54,100.49,14.29720262]
[1769988720095,10.53704535,100.54,100.5,14.29720262]
[1769988720298,10.53704535,100.54,100.51,14.29720262]
[1769988720501,4.2804612,100.56,100.52,14.29720262]
[1769988720698,14.22488215,100.56,100.52,24.24512773]
[1769988720994,4.2804612,100.56,100.53,14.29720262]
[1769988721186,4.2804612,100.56,100.52,24.24512773]
[1769988721377,14.29720262,100.55,100.5,39.17103175]
[1769988721578,14.29720262,100.55,100.51,9.94880908]
[1769988721786,14.29720262,100.53,100.5,9.94984756]
[1769988721984,14.29720262,100.53,100.49,9.95057653]
[1769988722289,14.29720262,100.51,100.47,9.95278079]
[1769988722604,14.29720262,100.51,100.46,9.9537841]
[1769988722605,14.29720262,100.5,100.46,9.9537841]
[1769988723197,14.29720262,100.49,100.46,9.9537841]
[1769988723384,14.29720262,100.5,100.46,9.9537841]
[1769988724496,14.22994145,100.51,100.44,9.95533084]
[1769988724497,18.57766382,100.48,100.44,9.95533084]
[1769988724796,14.29720262,100.47,100.43,14.21560014]
[1769988725390,18.57766382,100.48,100.43,28.51280276]
[1769988726098,81.27766382,100.5,100.45,14.29720262]
[1769988726301,14.29720262,100.49,100.44,18.5556894]
[1769988726478,66.9804612,100.5,100.46,14.29720262]
[1769988726679,62.7,100.5,100.48,24.24943191]
[1769988727889,76.99720262,100.5,100.46,9.95363948]
[1769988728085,14.29720262,100.49,100.46,9.95363948]
[1769988728398,66.69733777,100.5,100.47,9.9529823]
[1769988728596,62.7,100.5,100.47,9.9529823]
[1769988728780,62.7,100.5,100.47,49.13323458]
[1769988729105,62.7,100.5,100.45,9.95455062]
[1769988729106,86.94761496,100.5,100.45,9.95455062]
[1769988729295,86.94761496,100.5,100.46,9.95417348]